fUSD/lending_fUSD_20250807
["ID","MTS","AMOUNT","RATE_DAILY","PERIOD"]
[377886689,1754597461563,-151.0,0.00019178,2]
[377886690,1754597461572,-3329.54,0.00019178,2]
[377886691,1754597461581,-186.980892,0.00019178,2]
[377886692,1754597461591,-800.62,0.00019178,2]
[377886693,1754597461600,-942.08,0.00019178,2]
[377886694,1754597461610,-1850.28,0.00019178,2]
[377886695,1754597461628,-500.0,0.00019178,2]
[377886696,1754597461638,-400.0,0.00019178,2]
[377886697,1754597461647,-512.78,0.00019178,2]
[377886698,1754597461659,-1238.16,0.00019178,2]
[377886699,1754597461668,-611.1,0.00019178,2]
[377886700,1754597461677,-241.02868049,0.00019178,2]
[377886701,1754597461687,-927.65,0.00019178,2]
[377886702,1754597461699,-2034.44,0.00019178,2]
[377886703,1754597461709,-400.0,0.00019178,2]
[377886704,1754597461718,-400.0,0.00019178,2]
[377886705,1754597461727,-400.0,0.00019178,2]
[377886706,1754597461736,-839.59,0.00019178,2]
[377886707,1754597461746,-1715.68,0.00019178,2]
[377886708,1754597461756,-400.0,0.00019178,2]
[377886709,1754597461765,-1266.46,0.00019178,2]
[377886710,1754597461774,-400.0,0.00019178,2]
[377886711,1754597461783,-951.16,0.00019178,2]
[377886712,1754597461793,-400.0,0.00019178,2]
[377886713,1754597461803,-1213.7,0.00019178,2]
[377886714,1754597461812,-2055.46,0.00019178,2]
[377886715,1754597461821,-238.75440648,0.00019178,2]
[377886716,1754597461831,-1880.07,0.00019178,2]
[377886717,1754597461840,-400.0,0.00019178,2]
[377886718,1754597461849,-1906.4,0.00019178,2]
[377886719,1754597461859,-2199.97,0.00019178,2]
[377886720,1754597461868,-1667.51,0.00019178,2]
[377886721,1754597461878,-400.0,0.00019178,2]
[377886722,1754597461887,-400.0,0.00019178,2]
[377886723,1754597461896,-787.19,0.00019178,2]
[377886724,1754597461905,-3052.58,0.00019178,2]
[377886725,1754597461915,-500.0,0.00019178,2]
[377886726,1754597461924,-965.37,0.00019178,2]
[377886727,1754597461933,-500.0,0.00019178,2]
[377886728,1754597461942,-500.0,0.00019178,2]
[377886729,1754597461951,-500.0,0.00019178,2]
[377886730,1754597461961,-500.0,0.00019178,2]
[377886731,1754597461970,-1340.12,0.00019178,2]
[377886732,1754597461980,-500.0,0.00019178,2]
[377886733,1754597461989,-500.0,0.00019178,2]
[377886734,1754597461998,-400.0,0.00019178,2]
[377886735,1754597462008,-3103.11,0.00019178,2]
[377886736,1754597462018,-500.0,0.00019178,2]
[377886737,1754597462027,-500.0,0.00019178,2]
[377886738,1754597462036,-1066.54,0.00019178,2]
[377886739,1754597462045,-400.0,0.00019178,2]
[377886740,1754597462054,-198.87244616,0.00019178,2]
[377886741,1754597462064,-878.5,0.00019178,2]
[377886742,1754597462076,-1588.79,0.00019178,2]
[377886743,1754597462086,-1581.69,0.00019178,2]
[377886744,1754597462097,-1453.52,0.00019178,2]
[377886745,1754597462107,-2374.37,0.00019178,2]
[377886746,1754597462117,-400.0,0.00019178,2]
[377886747,1754597462127,-1873.3,0.00019178,2]
[377886748,1754597462136,-400.0,0.00019178,2]
[377886749,1754597462145,-400.0,0.00019178,2]
[377886750,1754597462155,-2321.09,0.00019178,2]
[377886751,1754597462164,-1072.04,0.00019178,2]
[377886752,1754597462173,-688.3,0.00019178,2]
[377886753,1754597462183,-2311.87,0.00019178,2]
[377886754,1754597462192,-400.0,0.00019178,2]
[377886755,1754597462202,-2393.85,0.00019178,2]
[377886756,1754597462211,-794.68,0.00019178,2]
[377886757,1754597462220,-400.0,0.00019178,2]
[377886758,1754597462230,-433.69,0.00019178,2]
[377886759,1754597462239,-925.72,0.00019178,2]
[377886760,1754597462248,-2041.25,0.00019178,2]
[377886761,1754597462258,-925.72,0.00019178,2]
[377886762,1754597462269,-400.0,0.00019178,2]
[377886763,1754597462280,-925.72,0.00019178,2]
[377886764,1754597462291,-852.83,0.00019178,2]
[377886765,1754597462300,-647.67,0.00019178,2]
[377886766,1754597462311,-925.72,0.00019178,2]
[377886767,1754597462320,-1534.23,0.00019178,2]
[377886768,1754597462329,-925.72,0.00019178,2]
[377886769,1754597462338,-925.72,0.00019178,2]
[377886770,1754597462348,-925.72,0.00019178,2]
[377886771,1754597462357,-925.72,0.00019178,2]
[377886772,1754597462366,-925.72,0.00019178,2]
[377886773,1754597462376,-925.72,0.00019178,2]
[377886774,1754597462385,-151.0,0.00019178,2]
[377886775,1754597462394,-174.33,0.00019178,2]
[377886776,1754597462402,-12620.69,0.00019178,2]
[377886777,1754597462411,-8042.09,0.00019178,2]
[377886778,1754597462420,-151.0,0.00019178,2]
[377886779,1754597462430,-151.0,0.00019178,2]
[377886780,1754597462439,-151.0,0.00019178,2]
[377886781,1754597462447,-282.572456,0.00019178,2]
[377886782,1754597462457,-155.62624139,0.00019194,2]
[377886783,1754597462466,-2915.11314906,0.00019198,2]
[377886784,1754597462476,-775.4911,0.000192,2]
[377886785,1754597462485,-211.58213282,0.00019213,2]
[377886786,1754597462494,-457.55740054,0.00019213,2]
[377886787,1754597462503,-160.0,0.00019213,2]
[377886788,1754597462513,-517.77525523,0.00019222,2]
[377886789,1754597462522,-500.0,0.00019222,2]
[377886790,1754597462531,-6458.01601753,0.00019223,2]
[377886791,1754597462540,-7210.49557841,0.0001923,2]
[377886792,1754597462549,-175.0,0.00019273,2]
[377886793,1754597462559,-2915.11314906,0.00019283,2]
[377886794,1754597462568,-7215.09848135,0.00019285,2]
[377886795,1754597462578,-6349.21288746,0.00019303,2]
[377886796,1754597464430,-179.62,0.0001873,2]
[377886797,1754597464439,-925.72,0.00019178,2]
[377886798,1754597464448,-925.72,0.00019178,2]
[377886799,1754597464458,-3381.66,0.00019178,2]
[377886800,1754597464467,-925.72,0.00019178,2]
[377886801,1754597464477,-924.16,0.00019178,2]
[377886802,1754597464486,-108.80313007,0.00019303,2]
[377886803,1754597464495,-509.0,0.00019344,2]
[377886804,1754597464504,-815.26666931,0.00019357,2]
[377886805,1754597464514,-2915.11314906,0.00019369,2]
[377886806,1754597464523,-692.92,0.00019382,2]
[377886807,1754597464532,-500.0,0.00019382,2]
[377886808,1754597464542,-500.0,0.00019382,2]
[377886809,1754597464551,-6458.01601753,0.00019384,2]
[377886810,1754597464561,-202.0,0.0001939,2]
[377886811,1754597464570,-863.51151954,0.000194,2]
[377886812,1754597464579,-538.63959,0.0001942,2]
[377886813,1754597464589,-506.12984926,0.0001942,2]
[377886814,1754597464601,-9942.98037883,0.00019429,2]
[377886815,1754597464614,-544.0,0.00019429,2]
[377886816,1754597464626,-500.0,0.00019429,2]
[377886817,1754597464635,-500.0,0.00019429,2]
[377886818,1754597464645,-500.0,0.00019429,2]
[377886819,1754597464654,-500.0,0.00019429,2]
[377886820,1754597464663,-500.0,0.00019429,2]
[377886821,1754597464672,-500.0,0.00019429,2]
[377886822,1754597464681,-500.0,0.00019429,2]
[377886823,1754597464690,-500.0,0.00019429,2]
[377886824,1754597464700,-507.0,0.00019429,2]
[377886825,1754597464709,-500.0,0.00019429,2]
[377886826,1754597464719,-500.0,0.00019429,2]
[377886827,1754597464728,-500.0,0.00019429,2]
[377886828,1754597464737,-500.0,0.00019429,2]
[377886829,1754597464746,-500.0,0.00019429,2]
[377886830,1754597464756,-500.0,0.00019429,2]
[377886831,1754597464765,-500.0,0.00019429,2]
[377886832,1754597464775,-500.0,0.00019429,2]
[377886833,1754597464785,-500.0,0.00019429,2]
[377886834,1754597464794,-500.0,0.00019429,2]
[377886835,1754597464803,-500.0,0.00019429,2]
[377886836,1754597464813,-500.0,0.00019429,2]
[377886837,1754597464822,-500.0,0.00019429,2]
[377886838,1754597464831,-500.0,0.00019429,2]
[377886839,1754597464840,-500.0,0.00019429,2]
[377886840,1754597464850,-500.0,0.00019429,2]
[377886841,1754597464860,-500.0,0.00019429,2]
[377886842,1754597464880,-295.17958638,0.00019429,2]
[377886843,1754597464902,-204.82041362,0.00019429,2]
[377886844,1754597464912,-500.0,0.00019429,2]
[377886845,1754597464922,-500.0,0.00019429,2]
[377886846,1754597464932,-500.0,0.00019429,2]
[377886847,1754597464941,-500.0,0.00019429,2]
[377886848,1754597464950,-500.0,0.00019429,2]
[377886849,1754597464960,-401.08336331,0.00019429,2]
[377886850,1754597464982,-98.91663669,0.00019429,2]
[377886851,1754597464991,-500.0,0.00019429,2]
[377886852,1754597465000,-271.79248154,0.00019429,2]
[377886855,1754597569647,500.0,0.00016986,2]
[377886858,1754597585128,500.0,0.00016986,2]
[377886863,1754597819311,368.03,0.00013699,2]
[377886867,1754597958039,432.68,0.00015068,2]
[377886868,1754597958278,432.68,0.00016672,2]
[377886869,1754598046777,509.0,0.00017344,2]
[377886871,1754598254082,250.0,0.00015,2]
[377886872,1754598305587,666.0,0.00017942,3]
[377886875,1754598393144,260.55,0.00018,2]
[377886878,1754598497228,2308.12862,0.00012,30]
[377886879,1754598497248,10000.0,0.00012,30]
[377886880,1754598497269,10000.0,0.00012,30]
[377886881,1754598497288,10000.0,0.00012,30]
[377886882,1754598497308,1423.84349894,0.00012,30]
[377886894,1754598631932,-191.97,0.00018069,2]
[377886895,1754598631942,-91.92275,0.0001807,4]
[377886896,1754598632057,-331.49609331,0.0001807,4]
[377886897,1754598632066,-576.58115669,0.0001807,4]
[377886898,1754598632073,-199.64,0.00018073,2]
[377886899,1754598632079,-193.05,0.00018143,2]
[377886900,1754598632086,-175.0,0.00018161,7]
[377886901,1754598632094,-1000.0,0.00018211,2]
[377886902,1754598632101,-432.68,0.00018276,2]
[377886903,1754598632108,-200.0,0.00018282,2]
[377886904,1754598632117,-649.0,0.00018428,2]
[377886905,1754598632124,-1200.0,0.00018428,2]
[377886906,1754598632131,-500.0,0.00018429,7]
[377886907,1754598632140,-500.0,0.00018429,7]
[377886908,1754598632147,-533.8,0.00018429,7]
[377886909,1754598632155,-466.74,0.00018429,7]
[377886910,1754598632164,-152.0,0.00018731,3]
[377886911,1754598632172,-176.04,0.00018784,2]
[377886912,1754598632180,-2779.08740604,0.0001884,2]
[377886913,1754598632211,-488.56799984,0.0001884,2]
[377887012,1754598637763,-1221.64589412,0.0001884,2]
[377887013,1754598637773,-231.54757133,0.0001884,2]
[377887014,1754598637784,-768.45242867,0.0001884,2]
[377887015,1754598637794,-4496.15507419,0.00018889,2]
[377887016,1754598637804,-267.46074303,0.00018889,2]
[377887017,1754598637814,-2815.08517591,0.00018899,2]
[377887018,1754598637824,-850.0,0.00018899,2]
[377887019,1754598637834,-4108.4115,0.000189,2]
[377887020,1754598637845,-48194.6092,0.000189,2]
[377887021,1754598637855,-600.0,0.00018921,2]
[377887022,1754598637865,-660.23319428,0.00018939,2]
[377887023,1754598637875,-172.40347973,0.00018939,2]
[377887024,1754598637887,-2230.76,0.0001894,2]
[377887025,1754598637896,-4662.51281194,0.00018944,2]
[377887026,1754598637908,-599.437,0.00018953,2]
[377887027,1754598637917,-164.585,0.00018953,2]
[377887028,1754598637927,-204.0,0.00018989,2]
[377887029,1754598637937,-151.0,0.00018989,2]
[377887030,1754598637947,-151.0,0.00018989,2]
[377887031,1754598637959,-151.0,0.00018989,2]
[377887032,1754598637969,-500.0,0.00018989,2]
[377887033,1754598637978,-151.0,0.00018989,2]
[377887034,1754598637988,-600.0,0.00018989,2]
[377887035,1754598638001,-500.0,0.00018989,2]
[377887036,1754598638014,-151.0,0.00018989,2]
[377887037,1754598638025,-500.0,0.00018989,2]
[377887038,1754598638038,-500.0,0.00018989,2]
[377887039,1754598638048,-151.0,0.00018989,2]
[377887040,1754598638058,-500.0,0.00018989,2]
[377887041,1754598638074,-160.0,0.00018989,2]
[377887042,1754598638083,-151.0,0.00018989,2]
[377887043,1754598638093,-401.19111454,0.00018989,2]
[377887044,1754598638103,-151.0,0.00018989,2]
[377887045,1754598638113,-500.0,0.00018989,2]
[377887046,1754598638123,-151.0,0.00018989,2]
[377887047,1754598638132,-500.0,0.00018989,2]
[377887049,1754598638142,-151.0,0.00018989,2]
[377887051,1754598638152,-500.0,0.00018989,2]
[377887053,1754598638161,-151.0,0.00018989,2]
[377887055,1754598638172,-500.0,0.00018989,2]
[377887057,1754598638181,-151.0,0.00018989,2]
[377887059,1754598638191,-500.0,0.00018989,2]
[377887061,1754598638202,-151.0,0.00018989,2]
[377887063,1754598638211,-2.4929429,0.00018989,2]
[377887066,1754598638224,-497.5070571,0.00018989,2]
[377887068,1754598638234,-491.23429996,0.00018989,2]
[377887070,1754598638245,-42.81890591,0.00018989,2]
[377887073,1754598638255,-151.0,0.00018989,2]
[377887075,1754598638264,-500.0,0.00018989,2]
[377887077,1754598638274,-25.51376343,0.00018989,2]
[377887079,1754598638286,-474.48623657,0.00018989,2]
[377887081,1754598638295,-500.0,0.00018989,2]
[377887083,1754598638304,-500.0,0.00018989,2]
[377887085,1754598638314,-500.0,0.00018989,2]
[377887088,1754598638324,-250.0,0.00018989,2]
[377887090,1754598638333,-500.0,0.00018989,2]
[377887092,1754598638343,-500.0,0.00018989,2]
[377887094,1754598638353,-250.0,0.00018989,2]
[377887096,1754598638363,-500.0,0.00018989,2]
[377887098,1754598638372,-250.0,0.00018989,2]
[377887100,1754598638382,-500.0,0.00018989,2]
[377887102,1754598638392,-500.0,0.00018989,2]
[377887104,1754598638402,-250.0,0.00018989,2]
[377887106,1754598638412,-500.0,0.00018989,2]
[377887108,1754598638422,-500.0,0.00018989,2]
[377887110,1754598638431,-250.0,0.00018989,2]
[377887112,1754598638441,-500.0,0.00018989,2]
[377887114,1754598638451,-235.92847763,0.00018989,2]
[377887118,1754598638477,-14.07152237,0.00018989,2]
[377887120,1754598638488,-255.44289864,0.00018989,2]
[377887122,1754598638500,-244.55710136,0.00018989,2]
[377887124,1754598638511,-250.0,0.00018989,2]
[377887126,1754598638520,-236.67476023,0.00018989,2]
[377887130,1754598638542,-263.32523977,0.00018989,2]
[377887132,1754598638551,-250.0,0.00018989,2]
[377887134,1754598638561,-500.0,0.00018989,2]
[377887135,1754598638570,-250.0,0.00018989,2]
[377887137,1754598638580,-500.0,0.00018989,2]
[377887140,1754598638598,-250.0,0.00018989,2]
[377887143,1754598638609,-500.0,0.00018989,2]
[377887145,1754598638619,-250.0,0.00018989,2]
[377887147,1754598638630,-250.0,0.00018989,2]
[377887149,1754598638640,-154.04,0.0001899,2]
[377887151,1754598638650,-4835.02578598,0.00018999,2]
[377887153,1754598638660,-301.99999952,0.00018999,2]
[377887155,1754598638670,-500.0,0.00018999,2]
[377887156,1754598638681,-1000.0,0.00019,2]
[377887159,1754598638691,-359.825702,0.00019,2]
[377887161,1754598638708,-640.174298,0.00019,2]
[377887162,1754598638718,-1000.0,0.00019,2]
[377887163,1754598638727,-151.0,0.00019,2]
[377887164,1754598638737,-152.663704,0.00019,2]
[377887165,1754598638746,-151.0,0.00019,2]
[377887166,1754598638756,-154.216233,0.00019,2]
[377887167,1754598638765,-341406.70041231,0.00019,2]
[377887168,1754598638775,-160.0,0.00019039,2]
[377887169,1754598638785,-211.58213282,0.00019039,2]
[377887170,1754598638794,-457.55740054,0.00019039,2]
[377887171,1754598638803,-403.75279245,0.00019043,2]
[377887172,1754598638813,-247.8091049,0.00019043,2]
[377887173,1754598638822,-168.39762488,0.00019043,2]
[377887174,1754598638831,-287.97844322,0.00019043,2]
[377887175,1754598638840,-587.15,0.00019044,2]
[377887176,1754598638850,-597.0,0.00019044,2]
[377887177,1754598638859,-575.304,0.00019044,2]
[377887179,1754598638869,-955.0,0.00019044,2]
[377887181,1754598638879,-996.141,0.00019044,2]
[377887183,1754598638888,-892.0,0.00019044,2]
[377887185,1754598638898,-1170.0,0.00019044,2]
[377887187,1754598638908,-1252.0,0.00019044,2]
[377887189,1754598638918,-809.0,0.00019044,2]
[377887191,1754598638927,-500.0,0.00019044,2]
[377887193,1754598638937,-5013.92174006,0.00019054,2]
[377887195,1754598638947,-351.65539426,0.00019078,2]
[377887197,1754598638957,-1552.0,0.00019078,2]
[377887199,1754598638970,-500.0,0.00019099,2]
[377887201,1754598638980,-150.0,0.00019108,2]
[377887203,1754598638990,-5199.43684444,0.00019109,2]
[377887205,1754598638999,-150.0,0.00019119,2]
[377887207,1754598639010,-500.0,0.00019154,2]
[377887210,1754598639019,-5391.81600769,0.00019164,2]
[377887212,1754598639030,-500.0,0.00019173,2]
[377887214,1754598639041,-505.13495878,0.00019173,2]
[377887216,1754598639052,-488.75368861,0.00019173,2]
[377887218,1754598639061,-500.0,0.00019173,2]
[377887220,1754598639072,-500.0,0.00019173,2]
[377887222,1754598639082,-500.0,0.00019173,2]
[377887224,1754598639092,-300.0,0.00019177,2]
[377887226,1754598639102,-666.0,0.00019177,2]
[377887228,1754598639112,-500.0,0.00019177,2]
[377887230,1754598639121,-400.0,0.00019178,2]
[377887232,1754598639131,-400.0,0.00019178,2]
[377887235,1754598639146,-400.0,0.00019178,2]
[377887237,1754598639155,-400.0,0.00019178,2]
[377887239,1754598639165,-400.0,0.00019178,2]
[377887241,1754598639175,-400.0,0.00019178,2]
[377887243,1754598639187,-368.86317694,0.00019178,2]
[377887245,1754598639196,-402.40507253,0.00019178,2]
[377887247,1754598639206,-400.0,0.00019178,2]
[377887249,1754598639216,-500.0,0.00019178,2]
[377887251,1754598639226,-400.0,0.00019178,2]
[377887253,1754598639236,-500.0,0.00019178,2]
[377887303,1754598639676,-402.37069253,0.00019178,2]
[377887306,1754598639696,-400.0,0.00019178,2]
[377887308,1754598639705,-400.0,0.00019178,2]
[377887310,1754598639714,-400.0,0.00019178,2]
[377887312,1754598639724,-400.0,0.00019178,2]
[377887314,1754598639733,-731.18,0.00019178,2]
[377887316,1754598639743,-348.89494644,0.00019178,2]
[377887318,1754598639752,-1461.06,0.00019178,2]
[377887320,1754598639762,-351.74448433,0.00019178,2]
[377887322,1754598639772,-400.0,0.00019178,2]
[377887324,1754598639781,-400.0,0.00019178,2]
[377887326,1754598639791,-400.0,0.00019178,2]
[377887328,1754598639801,-400.0,0.00019178,2]
[377887331,1754598639810,-400.0,0.00019178,2]
[377887333,1754598639819,-400.0,0.00019178,2]
[377887335,1754598639828,-459.40998642,0.00019178,2]
[377887337,1754598639838,-400.0,0.00019178,2]
[377887339,1754598639847,-400.0,0.00019178,2]
[377887341,1754598639856,-156.650657,0.00019178,2]
[377887343,1754598639865,-400.0,0.00019178,2]
[377887345,1754598639874,-784.34,0.00019178,2]
[377887347,1754598639883,-400.0,0.00019178,2]
[377887349,1754598639893,-400.0,0.00019178,2]
[377887351,1754598639902,-400.0,0.00019178,2]
[377887353,1754598639911,-400.0,0.00019178,2]
[377887355,1754598639920,-400.0,0.00019178,2]
[377887357,1754598639930,-400.0,0.00019178,2]
[377887359,1754598639939,-1542.47,0.00019178,2]
[377887361,1754598639949,-400.0,0.00019178,2]
[377887363,1754598639961,-469.42,0.00019178,2]
[377887365,1754598639970,-785.99,0.00019178,2]
[377887367,1754598639980,-1056.42,0.00019178,2]
[377887369,1754598639990,-400.0,0.00019178,2]
[377887371,1754598640000,-400.0,0.00019178,2]
[377887373,1754598640010,-228.28654692,0.00019178,2]
[377887375,1754598640020,-151.664238,0.00019178,2]
[377887377,1754598640029,-400.0,0.00019178,2]
[377887379,1754598640039,-400.0,0.00019178,2]
[377887381,1754598640049,-708.74,0.00019178,2]
[377887383,1754598640058,-1147.09,0.00019178,2]
[377887385,1754598640067,-523.9,0.00019178,2]
[377887387,1754598640076,-1315.98,0.00019178,2]
[377887389,1754598640085,-390.76074249,0.00019178,2]
[377887391,1754598640094,-152.998171,0.00019178,2]
[377887393,1754598640103,-152.998171,0.00019178,2]
[377887395,1754598640113,-1274.6,0.00019178,2]
[377887397,1754598640122,-400.0,0.00019178,2]
[377887399,1754598640131,-400.0,0.00019178,2]
[377887401,1754598640141,-400.0,0.00019178,2]
[377887403,1754598640151,-400.0,0.00019178,2]
[377887405,1754598640160,-400.0,0.00019178,2]
[377887407,1754598640170,-400.0,0.00019178,2]
[377887409,1754598640180,-441.81,0.00019178,2]
[377887411,1754598640190,-639.67,0.00019178,2]
[377887413,1754598640200,-400.0,0.00019178,2]
[377887415,1754598640210,-400.0,0.00019178,2]
[377887417,1754598640219,-500.0,0.00019178,2]
[377887419,1754598640229,-500.0,0.00019178,2]
[377887421,1754598640239,-500.0,0.00019178,2]
[377887423,1754598640248,-500.0,0.00019178,2]
[377887425,1754598640257,-500.0,0.00019178,2]
[377887427,1754598640270,-500.0,0.00019178,2]
[377887429,1754598640279,-500.0,0.00019178,2]
[377887431,1754598640289,-1283.47,0.00019178,2]
[377887434,1754598640299,-500.0,0.00019178,2]
[377887436,1754598640309,-500.0,0.00019178,2]
[377887438,1754598640318,-500.0,0.00019178,2]
[377887440,1754598640327,-500.0,0.00019178,2]
[377887442,1754598640337,-500.0,0.00019178,2]
[377887443,1754598640346,-400.0,0.00019178,2]
[377887446,1754598640355,-400.0,0.00019178,2]
[377887448,1754598640364,-400.0,0.00019178,2]
[377887450,1754598640374,-400.0,0.00019178,2]
[377887452,1754598640383,-400.0,0.00019178,2]
[377887454,1754598640393,-400.0,0.00019178,2]
[377887456,1754598640402,-400.0,0.00019178,2]
[377887458,1754598640411,-400.0,0.00019178,2]
[377887460,1754598640421,-400.0,0.00019178,2]
[377887462,1754598640431,-620.61,0.00019178,2]
[377887464,1754598640440,-400.0,0.00019178,2]
[377887466,1754598640450,-400.0,0.00019178,2]
[377887468,1754598640459,-400.0,0.00019178,2]
[377887470,1754598640469,-1265.05,0.00019178,2]
[377887472,1754598640478,-437.86,0.00019178,2]
[377887474,1754598640489,-400.0,0.00019178,2]
[377887476,1754598640499,-400.0,0.00019178,2]
[377887478,1754598640510,-1006.8,0.00019178,2]
[377887480,1754598640520,-405.45229141,0.00019178,2]
[377887482,1754598640531,-724.44,0.00019178,2]
[377887484,1754598640541,-400.0,0.00019178,2]
[377887485,1754598640550,-1038.06,0.00019178,2]
[377887487,1754598640559,-400.0,0.00019178,2]
[377887489,1754598640569,-400.0,0.00019178,2]
[377887491,1754598640578,-400.0,0.00019178,2]
[377887492,1754598640588,-774.41,0.00019178,2]
[377887494,1754598640598,-1816.57,0.00019178,2]
[377887496,1754598640607,-400.0,0.00019178,2]
[377887498,1754598640617,-400.0,0.00019178,2]
[377887500,1754598640626,-464.47,0.00019178,2]
[377887501,1754598640635,-400.0,0.00019178,2]
[377887503,1754598640645,-400.0,0.00019178,2]
[377887505,1754598640654,-400.0,0.00019178,2]
[377887507,1754598640663,-400.0,0.00019178,2]
[377887509,1754598640673,-427.1,0.00019178,2]
[377887510,1754598640683,-400.0,0.00019178,2]
[377887512,1754598640693,-569.52,0.00019178,2]
[377887514,1754598640703,-400.0,0.00019178,2]
[377887516,1754598640712,-401.81016312,0.00019178,2]
[377887518,1754598640721,-1661.96,0.00019178,2]
[377887519,1754598640731,-400.0,0.00019178,2]
[377887521,1754598640740,-400.0,0.00019178,2]
[377887523,1754598640750,-255.0652255,0.00019178,2]
[377887525,1754598640760,-400.0,0.00019178,2]
[377887527,1754598640770,-400.0,0.00019178,2]
[377887529,1754598640779,-400.0,0.00019178,2]
[377887530,1754598640788,-1043.83,0.00019178,2]
[377887532,1754598640798,-400.0,0.00019178,2]
[377887533,1754598640807,-400.0,0.00019178,2]
[377887536,1754598640819,-400.0,0.00019178,2]
[377887537,1754598640828,-439.96,0.00019178,2]
[377887539,1754598640837,-487.21,0.00019178,2]
[377887541,1754598640846,-400.0,0.00019178,2]
[377887543,1754598640856,-400.0,0.00019178,2]
[377887545,1754598640865,-469.64,0.00019178,2]
[377887547,1754598640875,-515.01451102,0.00019178,2]
[377887549,1754598640884,-1668.91,0.00019178,2]
[377887550,1754598640894,-551.3,0.00019178,2]
[377887552,1754598640904,-569.53,0.00019178,2]
[377887554,1754598640913,-400.0,0.00019178,2]
[377887556,1754598640922,-400.0,0.00019178,2]
[377887558,1754598640933,-434.47,0.00019178,2]
[377887560,1754598640942,-402.78593578,0.00019178,2]
[377887562,1754598640952,-400.0,0.00019178,2]
[377887564,1754598640967,-400.0,0.00019178,2]
[377887566,1754598640985,-1126.57,0.00019178,2]
[377887567,1754598640994,-506.0,0.00019178,2]
[377887569,1754598641004,-400.0,0.00019178,2]
[377887571,1754598641014,-400.0,0.00019178,2]
[377887573,1754598641024,-711.1,0.00019178,2]
[377887575,1754598641033,-1360.63,0.00019178,2]
[377887577,1754598641043,-400.0,0.00019178,2]
[377887578,1754598641052,-335.94592723,0.00019178,2]
[377887580,1754598641062,-400.0,0.00019178,2]
[377887582,1754598641071,-988.21,0.00019178,2]
[377887584,1754598641080,-648.2,0.00019178,2]
[377887586,1754598641089,-400.0,0.00019178,2]
[377887587,1754598641099,-949.34,0.00019178,2]
[377887589,1754598641108,-1022.74,0.00019178,2]
[377887591,1754598641118,-335.42368174,0.00019178,2]
[377887593,1754598641127,-400.0,0.00019178,2]
[377887595,1754598641137,-400.0,0.00019178,2]
[377887597,1754598641146,-400.0,0.00019178,2]
[377887599,1754598641155,-400.0,0.00019178,2]
[377887601,1754598641164,-598.95,0.00019178,2]
[377887603,1754598641174,-400.0,0.00019178,2]
[377887605,1754598641184,-400.0,0.00019178,2]
[377887606,1754598641193,-400.0,0.00019178,2]
[377887608,1754598641202,-400.0,0.00019178,2]
[377887610,1754598641212,-400.0,0.00019178,2]
[377887612,1754598641221,-1575.36,0.00019178,2]